[Event "SVK Amateur-ch 2020"]
[Site "Topolcany"]
[Date "2020.07.13"]
[Round "6.24"]
[White "Chlpek, Daniel"]
[Black "Skreno, Vladimir"]
[Result "0-1"]
[ECO "B31"]
[WhiteElo "1982"]
[BlackElo "2126"]
[Annotator "ChessBase"]
[PlyCount "140"]
[EventDate "2020.07.10"]
[EventType "swiss"]
[EventCountry "SVK"]
[SourceTitle "playchess.com"]
[Source "ChessBase"]
[SourceQuality "1"]
[TimeControl "3600+30"]

1. e4 {[%emt 0:07:19]} c5 {[%emt 0:00:00]} 2. Nf3 {[%emt 0:00:13]} Nc6 {[%emt 0:00:15]} 3. Bb5 {[%emt 0:00:27]} g6 {[%emt 0:00:26]} 4. O-O {[%emt 0:00:04]} Bg7 {[%emt 0:00:12]} 5. Re1 {[%emt 0:00:04]} e5 {[%emt 0:01:18]} 6. b4 {[%emt 0:00:04]} cxb4 {[%emt 0:03:41]} 7. a3 {[%emt 0:00:38]} Nge7 {[%emt 0:09:18]} 8. axb4 {[%emt 0:01:00]} Qb6 {[%emt 0:06:50]} 9. Bf1 {[%emt 0:02:18]} Nxb4 {[%emt 0:02:39]} 10. Ba3 {[%emt 0:00:11]} Nbc6 {[%emt 0:03:22]} 11. Nc3 {[%emt 0:00:23]} d6 {[%emt 0:07:37]} 12. Bxd6 {[%emt 0:04:03]} Qd8 {[%emt 0:06:19]} 13. Ba3 {[%emt 0:01:42]} Bg4 {[%emt 0:00:47]} 14. Bc4 {[%emt 0:01:37]} O-O {[%emt 0:03:09]} 15. h3 Bxf3 {[%emt 0:00:44]} 16. Qxf3 {[%emt 0:00:45]} Nd4 {[%emt 0:01:08]} 17. Qd1 {[%emt 0:00:06]} Re8 {[%emt 0:02:19]} 18. Qb1 {[%emt 0:01:22]} Qc7 {[%emt 0:05:20]} 19. Qa2 {[%emt 0:00:28]} Nec6 {[%emt 0:01:40]} 20. Nd5 {[%emt 0:01:29]} Qd7 {[%emt 0:01:01]} 21. Rab1 {[%emt 0:05:11]} Na5 {[%emt 0:02:15]} 22. Bd3 {[%emt 0:01:50]} Rac8 {[%emt 0:00:52]} 23. c3 {[%emt 0:01:09]} Ne6 {[%emt 0:00:08]} 24. Bf1 {[%emt 0:08:47]} Nf4 {[%emt 0:03:20]} 25. Ne7+ {[%emt 0:02:24]} Rxe7 {[%emt 0:02:09]} 26. Bxe7 {[%emt 0:00:22]} Nc6 {[%emt 0:00:44]} 27. Bc5 {[%emt 0:01:02]} Rd8 {[%emt 0:01:43]} 28. Be3 {[%emt 0:00:08]} Ne6 {[%emt 0:00:09]} 29. Qb3 {[%emt 0:00:31]} b6 {[%emt 0:00:19]} 30. Bb5 {[%emt 0:00:27]} Qc7 31. Bxc6 {[%emt 0:01:49]} Qxc6 {[%emt 0:00:19]} 32. Ra1 {[%emt 0:00:19]} Rd7 {[%emt 0:01:08]} 33. Qa4 {[%emt 0:00:56]} b5 {[%emt 0:01:01]} 34. Qc2 {[%emt 0:00:19]} a6 {[%emt 0:00:42]} 35. Ra2 {[%emt 0:00:22]} Bf8 {[%emt 0:00:34]} 36. Rea1 {[%emt 0:00:29]} Nc7 {[%emt 0:00:10]} 37. f4 {[%emt 0:01:45]} Bc5 {[%emt 0:01:18]} 38. d4 {[%emt 0:01:07]} exf4 {[%emt 0:01:01]} 39. Bxf4 {[%emt 0:00:32]} Bb6 {[%emt 0:01:34]} 40. Bxc7 {[%emt 0:01:40]} Rxc7 {[%emt 0:00:09]} 41. Rxa6 {[%emt 0:02:03]} Bxd4+ {[%emt 0:00:11]} 42. Kh1 {[%emt 0:00:08]} Qxc3 {[%emt 0:00:31]} 43. Qxc3 {[%emt 0:00:22]} Bxc3 {[%emt 0:00:02]} 44. Rc1 {[%emt 0:01:06]} b4 {[%emt 0:00:06]} 45. Ra8+ {[%emt 0:02:05]} Kg7 {[%emt 0:00:15]} 46. Re8 {[%emt 0:00:50]} Rb7 {[%emt 0:00:42]} 47. Rc8 {[%emt 0:00:59]} Be5 {[%emt 0:01:50]} 48. R8c5 {[%emt 0:00:40]} f6 {[%emt 0:00:33]} 49. Rb1 {[%emt 0:00:18]} b3 {[%emt 0:00:14]} 50. Rd5 {[%emt 0:00:40]} b2 {[%emt 0:00:23]} 51. Kg1 {[%emt 0:02:38]} Rb4 {[%emt 0:00:37]} 52. Kf2 {[%emt 0:00:32]} Rxe4 {[%emt 0:00:08]} 53. Rxe5 {[%emt 0:00:54]} Rxe5 {[%emt 0:00:08]} 54. Rxb2 {[%emt 0:00:05]} g5 {[%emt 0:01:05]} 55. Kf3 {[%emt 0:00:52]} Ra5 {[%emt 0:00:16]} 56. Rb3 {[%emt 0:00:30]} Kg6 {[%emt 0:00:22]} 57. Kg3 {[%emt 0:00:24]} Ra4 {[%emt 0:01:25]} 58. Rc3 {[%emt 0:00:22]} h5 {[%emt 0:00:11]} 59. Kf3 {[%emt 0:00:58]} Rb4 {[%emt 0:00:21]} 60. Ra3 {[%emt 0:00:11]} Rf4+ {[%emt 0:00:14]} 61. Kg3 {[%emt 0:00:21]} h4+ {[%emt 0:00:25]} 62. Kh2 {[%emt 0:00:01]} Rf1 {[%emt 0:00:16]} 63. Ra5 {[%emt 0:01:00]} Rb1 {[%emt 0:00:08]} 64. Rc5 {[%emt 0:00:18]} Kf7 {[%emt 0:00:45]} 65. Rc6 {[%emt 0:00:18]} Re1 {[%emt 0:00:22]} 66. Rb6 {[%emt 0:00:40]} Kg6 {[%emt 0:00:48]} 67. Rb5 {[%emt 0:00:10]} f5 {[%emt 0:01:01]} 68. Rb6+ {[%emt 0:00:04]} Kh5 {[%emt 0:00:39]} 69. Rb5 {[%emt 0:00:11]} Rf1 {[%emt 0:00:19]} 70. g4+ {[%emt 0:00:53]} fxg4 {[%emt 0:00:45]} 0-1

[Event "SVK Amateur-ch 2020"]
[Site "Topolcany"]
[Date "2020.07.13"]
[Round "6.25"]
[White "Nikanova, Ekaterina"]
[Black "Dzwierzynski, Bartosz"]
[Result "1/2-1/2"]
[ECO "B23"]
[WhiteElo "2116"]
[BlackElo "1869"]
[Annotator "RC"]
[PlyCount "64"]
[EventDate "2020.07.10"]
[EventType "swiss"]
[EventCountry "SVK"]
[SourceTitle "playchess.com"]
[Source "ChessBase"]
[SourceQuality "1"]
[TimeControl "3600+30"]

1. e4 {[%emt 0:00:00]} c5 {[%emt 0:00:00]} 2. Nc3 {[%emt 0:00:00]} Nc6 {[%emt 0:00:00]} 3. f4 {[%emt 0:00:00]} g6 {[%emt 0:00:04]} 4. Nf3 {[%emt 0:00:00]} Bg7 {[%emt 0:00:05]} 5. Bb5 {[%emt 0:00:01]} Nd4 {[%emt 0:00:23]} 6. O-O {[%emt 0:01:56]} Nxb5 {[%emt 0:00:34]} 7. Nxb5 {[%emt 0:00:04]} a6 {[%emt 0:00:14]} 8. Nc3 {[%emt 0:00:20]} e6 {[%emt 0:00:07]} 9. d3 {[%emt 0:10:01]} Ne7 {[%emt 0:00:22]} 10. Qe1 {[%emt 0:01:04]} d6 {[%emt 0:03:00]} 11. Ne2 {[%emt 0:05:24]} O-O {[%emt 0:00:57]} 12. c3 {[%emt 0:00:38]} b5 {[%emt 0:01:21]} 13. Ng5 {[%emt 0:08:13]} h6 {[%emt 0:03:14]} 14. Nf3 {[%emt 0:00:23]} f5 {[%emt 0:00:30]} 15. Ng3 {[%emt 0:02:13]} Re8 {[%emt 0:02:11]} 16. Qf2 {[%emt 0:05:56]} Qc7 {[%emt 0:01:22]} 17. Re1 {[%emt 0:04:59]} Bd7 {[%emt 0:02:27]} 18. Bd2 {[%emt 0:02:18]} Rab8 {[%emt 0:01:33]} 19. Re2 {[%emt 0:01:01]} c4 {[%emt 0:04:34]} 20. d4 {[%emt 0:05:29]} d5 {[%emt 0:01:40]} 21. exf5 {[%emt 0:00:32]} exf5 {[%emt 0:00:14]} 22. Rae1 {[%emt 0:00:22]} Nc6 {[%emt 0:00:58]} 23. Rxe8+ {[%emt 0:04:14]} Rxe8 {[%emt 0:00:07]} 24. Rxe8+ {[%emt 0:00:06]} Bxe8 {[%emt 0:00:06]} 25. Qe2 {[%emt 0:01:48]} Bf7 {[%emt 0:00:40]} 26. Ne5 {[%emt 0:02:03]} Bf6 {[%emt 0:00:48]} 27. Qf3 {[%emt 0:02:29]} Ne7 {[%emt 0:00:55]} 28. Nf1 {[%emt 0:01:06]} Kg7 {[%emt 0:02:02]} 29. Ne3 {[%emt 0:00:24]} Be6 {[%emt 0:00:14]} 30. g4 {[%emt 0:05:30]} Qd8 {[%emt 0:03:15]} 31. h3 {[%emt 0:01:23]} Bxe5 {[%emt 0:05:15]} 32. fxe5 {[%emt 0:00:31]} Qg8 {[%emt 0:02:32]} 1/2-1/2

[Event "SVK Amateur-ch 2020"]
[Site "Topolcany"]
[Date "2020.07.13"]
[Round "6.26"]
[White "Redzisz, Michal"]
[Black "Frink, Ferenc"]
[Result "0-1"]
[ECO "A50"]
[WhiteElo "1972"]
[BlackElo "2075"]
[Annotator "ChessBase"]
[PlyCount "72"]
[EventDate "2020.07.10"]
[EventType "swiss"]
[EventCountry "SVK"]
[SourceTitle "playchess.com"]
[Source "ChessBase"]
[SourceQuality "1"]
[TimeControl "3600+30"]

1. d4 {[%emt 0:00:00]} Nf6 {[%emt 0:02:19]} 2. c4 {[%emt 0:00:00]} Nc6 {[%emt 0:00:11]} 3. Nf3 {[%emt 0:00:00]} e6 {[%emt 0:00:10]} 4. a3 {[%emt 0:00:00]} d6 {[%emt 0:00:39]} 5. Nc3 {[%emt 0:00:48]} Bd7 {[%emt 0:00:13]} 6. e4 {[%emt 0:11:33]} e5 {[%emt 0:00:14]} 7. d5 {[%emt 0:02:53]} Ne7 {[%emt 0:00:11]} 8. g3 {[%emt 0:02:19]} Ng6 {[%emt 0:00:11]} 9. Bg2 {[%emt 0:07:38]} Be7 {[%emt 0:00:12]} 10. O-O {[%emt 0:01:48]} O-O {[%emt 0:03:39]} 11. Ne1 {[%emt 0:01:45]} h6 {[%emt 0:02:20]} 12. Nd3 {[%emt 0:02:29]} Nh7 {[%emt 0:00:31]} 13. h4 {[%emt 0:02:53]} f5 {[%emt 0:05:49]} 14. h5 {[%emt 0:03:09]} Nh8 {[%emt 0:02:18]} 15. f4 {[%emt 0:00:03]} exf4 {[%emt 0:00:42]} 16. Nxf4 {[%emt 0:04:29]} Ng5 {[%emt 0:00:19]} 17. Be3 {[%emt 0:01:39]} Bf6 {[%emt 0:03:12]} 18. Bd4 {[%emt 0:01:31]} Qe7 {[%emt 0:02:25]} 19. Qd3 {[%emt 0:03:09]} Rae8 {[%emt 0:04:37]} 20. Rae1 {[%emt 0:00:03]} Be5 {[%emt 0:00:19]} 21. b4 {[%emt 0:07:01]} Qf6 {[%emt 0:04:31]} 22. Bxe5 {[%emt 0:01:24]} Rxe5 {[%emt 0:02:05]} 23. Re3 {[%emt 0:06:37]} Rfe8 {[%emt 0:04:27]} 24. Qd4 {[%emt 0:04:07]} b6 {[%emt 0:01:09]} 25. Nd3 {[%emt 0:00:41]} Nhf7 {[%emt 0:06:46]} 26. Nxe5 {[%emt 0:00:55]} dxe5 {[%emt 0:02:54]} 27. Qd3 {[%emt 0:01:04]} f4 {[%emt 0:00:19]} 28. Re2 {[%emt 0:00:54]} Bg4 {[%emt 0:01:57]} 29. Ref2 {[%emt 0:00:04]} Nh3+ {[%emt 0:00:14]} 30. Bxh3 {[%emt 0:00:37]} Bxh3 {[%emt 0:00:02]} 31. gxf4 {[%emt 0:02:00]} Bxf1 {[%emt 0:00:13]} 32. Qxf1 {[%emt 0:01:11]} exf4 {[%emt 0:00:17]} 33. Rxf4 {[%emt 0:00:01]} Qxc3 {[%emt 0:00:42]} 34. Rxf7 {[%emt 0:00:03]} Qg3+ {[%emt 0:00:12]} 35. Kh1 {[%emt 0:00:44]} Qh4+ {[%emt 0:00:10]} 36. Kg2 {[%emt 0:00:22]} Qg5+ {[%emt 0:00:20]} 0-1

[Event "SVK Amateur-ch 2020"]
[Site "Topolcany"]
[Date "2020.07.13"]
[Round "6.27"]
[White "Ihnat, Marek ml."]
[Black "Kulhanek, Jachym"]
[Result "0-1"]
[ECO "B70"]
[WhiteElo "2065"]
[BlackElo "1920"]
[Annotator "ChessBase"]
[PlyCount "110"]
[EventDate "2020.07.10"]
[EventType "swiss"]
[EventCountry "SVK"]
[SourceTitle "playchess.com"]
[Source "ChessBase"]
[SourceQuality "1"]
[TimeControl "3600+30"]

1. e4 {[%emt 0:00:00]} c5 {[%emt 0:00:00]} 2. Nf3 {[%emt 0:00:00]} d6 {[%emt 0:00:00]} 3. d4 {[%emt 0:00:00]} cxd4 {[%emt 0:00:00]} 4. Nxd4 {[%emt 0:00:00]} Nf6 {[%emt 0:00:00]} 5. Nc3 {[%emt 0:00:02]} g6 {[%emt 0:00:00]} 6. Bc4 {[%emt 0:00:12]} Bg7 {[%emt 0:00:05]} 7. O-O {[%emt 0:00:08]} O-O {[%emt 0:00:46]} 8. h3 {[%emt 0:00:19]} a6 {[%emt 0:01:26]} 9. Bb3 {[%emt 0:00:29]} b6 {[%emt 0:03:39]} 10. Re1 {[%emt 0:00:51]} Bb7 {[%emt 0:00:46]} 11. Bg5 {[%emt 0:03:14]} Nbd7 {[%emt 0:01:31]} 12. Nf3 {[%emt 0:06:05]} Rc8 {[%emt 0:02:31]} 13. Bd5 {[%emt 0:17:21]} Qc7 {[%emt 0:13:49]} 14. Bxb7 {[%emt 0:01:17]} Qxb7 {[%emt 0:00:04]} 15. Qe2 {[%emt 0:04:16]} Rfe8 {[%emt 0:03:36]} 16. Rad1 {[%emt 0:00:16]} Rc5 {[%emt 0:04:25]} 17. Be3 {[%emt 0:06:14]} Rxc3 {[%emt 0:00:49]} 18. bxc3 {[%emt 0:00:16]} Nxe4 {[%emt 0:00:09]} 19. Bd4 {[%emt 0:06:54]} Nxc3 {[%emt 0:00:28]} 20. Bxc3 {[%emt 0:00:12]} Bxc3 {[%emt 0:00:06]} 21. Rf1 {[%emt 0:01:58]} Bf6 {[%emt 0:00:26]} 22. Rxd6 {[%emt 0:02:32]} Rc8 {[%emt 0:00:40]} 23. Rdd1 {[%emt 0:00:48]} Nc5 {[%emt 0:01:07]} 24. c4 {[%emt 0:06:56]} Ne6 {[%emt 0:02:11]} 25. Rc1 {[%emt 0:03:55]} Rc5 {[%emt 0:01:26]} 26. Rfe1 {[%emt 0:01:09]} Nf4 {[%emt 0:03:14]} 27. Qe4 {[%emt 0:00:32]} Qc7 {[%emt 0:01:09]} 28. Rc2 {[%emt 0:04:13]} Ne6 {[%emt 0:04:44]} 29. Qa8+ {[%emt 0:00:42]} Kg7 {[%emt 0:02:01]} 30. Nd2 {[%emt 0:00:56]} Nd4 {[%emt 0:07:22]} 31. Rcc1 {[%emt 0:00:07]} Rf5 {[%emt 0:02:57]} 32. Ne4 {[%emt 0:02:08]} Bh4 {[%emt 0:02:20]} 33. c5 {[%emt 0:00:17]} bxc5 {[%emt 0:03:40]} 34. Qxa6 {[%emt 0:00:11]} Bxf2+ {[%emt 0:05:04]} 35. Nxf2 {[%emt 0:00:10]} Qg3 {[%emt 0:00:02]} 36. Kh1 {[%emt 0:02:46]} Rxf2 {[%emt 0:00:25]} 37. Qa8 {[%emt 0:00:31]} Nf3 {[%emt 0:01:01]} 38. Qxf3 {[%emt 0:00:19]} Rxf3 {[%emt 0:00:02]} 39. gxf3 {[%emt 0:00:09]} Qxf3+ {[%emt 0:00:03]} 40. Kh2 {[%emt 0:00:58]} Qf2+ {[%emt 0:00:08]} 41. Kh1 {[%emt 0:00:02]} Qxa2 {[%emt 0:00:30]} 42. Rxe7 {[%emt 0:00:20]} Qa3 {[%emt 0:00:20]} 43. Ree1 {[%emt 0:01:06]} Qxh3+ {[%emt 0:00:06]} 44. Kg1 {[%emt 0:00:04]} c4 {[%emt 0:00:40]} 45. Kf2 {[%emt 0:00:36]} c3 {[%emt 0:00:37]} 46. Ke2 {[%emt 0:00:38]} Qh2+ {[%emt 0:00:22]} 47. Kd3 {[%emt 0:00:14]} Qd2+ {[%emt 0:00:19]} 48. Kc4 {[%emt 0:00:02]} c2 {[%emt 0:00:12]} 49. Kb3 {[%emt 0:00:10]} h5 {[%emt 0:00:35]} 50. Rh1 {[%emt 0:00:39]} Kh6 {[%emt 0:00:19]} 51. Kb2 {[%emt 0:00:08]} g5 {[%emt 0:00:38]} 52. Rxc2 {[%emt 0:00:07]} Qb4+ {[%emt 0:00:41]} 53. Kc1 {[%emt 0:00:33]} g4 {[%emt 0:00:35]} 54. Rch2 {[%emt 0:00:10]} Qc5+ {[%emt 0:00:20]} 55. Kd2 {[%emt 0:00:11]} g3 {[%emt 0:00:13]} 0-1

[Event "SVK Amateur-ch 2020"]
[Site "Topolcany"]
[Date "2020.07.13"]
[Round "6.28"]
[White "Blaho, Stefan"]
[Black "Kubrican, Anton"]
[Result "1-0"]
[ECO "A40"]
[WhiteElo "2054"]
[BlackElo "1861"]
[Annotator "ChessBase"]
[PlyCount "141"]
[EventDate "2020.07.10"]
[EventType "swiss"]
[EventCountry "SVK"]
[SourceTitle "playchess.com"]
[Source "ChessBase"]
[SourceQuality "1"]
[TimeControl "3600+30"]

1. d4 {[%emt 0:00:00]} g6 {[%emt 0:17:14]} 2. Bf4 {[%emt 0:00:07]} Bg7 {[%emt 0:00:19]} 3. e3 {[%emt 0:00:20]} d6 {[%emt 0:00:07]} 4. Nf3 {[%emt 0:00:10]} Nf6 {[%emt 0:00:10]} 5. h3 {[%emt 0:00:10]} O-O {[%emt 0:01:28]} 6. Be2 {[%emt 0:00:09]} c5 {[%emt 0:00:19]} 7. c3 {[%emt 0:00:47]} Qb6 {[%emt 0:00:22]} 8. Qb3 {[%emt 0:00:38]} Qxb3 {[%emt 0:00:39]} 9. axb3 {[%emt 0:00:02]} Nc6 {[%emt 0:00:23]} 10. Nbd2 {[%emt 0:01:24]} Re8 {[%emt 0:01:57]} 11. Bh2 {[%emt 0:22:15]} a6 {[%emt 0:05:11]} 12. dxc5 {[%emt 0:06:22]} dxc5 {[%emt 0:00:11]} 13. Ne5 {[%emt 0:01:44]} Nxe5 {[%emt 0:04:39]} 14. Bxe5 {[%emt 0:00:01]} Nd5 {[%emt 0:00:24]} 15. Bxg7 {[%emt 0:00:09]} Kxg7 {[%emt 0:00:01]} 16. Bf3 {[%emt 0:00:11]} Nf6 {[%emt 0:04:21]} 17. Nc4 {[%emt 0:05:10]} Rb8 {[%emt 0:07:09]} 18. Nb6 {[%emt 0:09:50]} Be6 {[%emt 0:04:00]} 19. c4 {[%emt 0:00:18]} Nd7 {[%emt 0:00:44]} 20. Nd5 {[%emt 0:07:16]} Bxd5 {[%emt 0:03:46]} 21. Bxd5 {[%emt 0:00:06]} e6 {[%emt 0:00:34]} 22. Bf3 {[%emt 0:00:11]} Ne5 {[%emt 0:00:10]} 23. Be2 {[%emt 0:00:01]} Nc6 {[%emt 0:00:22]} 24. Bf3 {[%emt 0:00:42]} Nb4 {[%emt 0:00:20]} 25. Ke2 {[%emt 0:00:17]} Red8 {[%emt 0:00:44]} 26. Rhd1 {[%emt 0:00:37]} b6 {[%emt 0:00:14]} 27. g4 {[%emt 0:00:36]} e5 {[%emt 0:00:57]} 28. g5 {[%emt 0:00:10]} f6 {[%emt 0:00:30]} 29. gxf6+ {[%emt 0:00:23]} Kxf6 {[%emt 0:00:01]} 30. h4 {[%emt 0:01:20]} a5 {[%emt 0:00:54]} 31. Be4 {[%emt 0:00:13]} Ke6 {[%emt 0:06:44]} 32. h5 {[%emt 0:02:32]} Rxd1 {[%emt 0:00:12]} 33. Rxd1 {[%emt 0:00:01]} gxh5 {[%emt 0:02:02]} 34. Rh1 {[%emt 0:00:03]} h6 {[%emt 0:00:12]} 35. Rxh5 {[%emt 0:00:08]} Rh8 {[%emt 0:00:01]} 36. f4 {[%emt 0:00:19]} exf4 {[%emt 0:01:05]} 37. exf4 {[%emt 0:00:01]} Kf6 {[%emt 0:00:27]} 38. Rh1 {[%emt 0:00:37]} h5 {[%emt 0:05:21]} 39. Kf3 {[%emt 0:01:01]} Na6 {[%emt 0:00:10]} 40. Rg1 {[%emt 0:00:30]} Rh6 {[%emt 0:00:54]} 41. Rd1 {[%emt 0:06:40]} Ke7 {[%emt 0:00:12]} 42. Kg3 {[%emt 0:03:02]} Re6 {[%emt 0:01:05]} 43. Kf3 {[%emt 0:00:08]} Rh6 {[%emt 0:00:09]} 44. Rg1 {[%emt 0:01:13]} Kf6 {[%emt 0:00:10]} 45. f5 {[%emt 0:02:11]} Nc7 {[%emt 0:02:52]} 46. Kf4 {[%emt 0:00:21]} Ne8 {[%emt 0:00:04]} 47. Rg8 {[%emt 0:00:28]} Nd6 {[%emt 0:00:34]} 48. Bf3 {[%emt 0:01:23]} h4 {[%emt 0:01:11]} 49. Rb8 {[%emt 0:00:09]} h3 {[%emt 0:00:53]} 50. Rxb6 {[%emt 0:00:04]} Ke7 {[%emt 0:00:13]} 51. Ra6 {[%emt 0:01:12]} h2 {[%emt 0:00:22]} 52. Ra7+ {[%emt 0:00:18]} Kf6 {[%emt 0:01:43]} 53. Ra6 {[%emt 0:00:02]} Ke7 {[%emt 0:00:08]} 54. Ra7+ {[%emt 0:01:11]} Kf6 {[%emt 0:00:06]} 55. Bh1 {[%emt 0:00:50]} Rh4+ {[%emt 0:01:11]} 56. Kf3 {[%emt 0:01:16]} Nxf5 {[%emt 0:00:22]} 57. Rxa5 {[%emt 0:00:16]} Nd4+ {[%emt 0:00:16]} 58. Kg3 {[%emt 0:00:19]} Rh8 {[%emt 0:00:09]} 59. Rxc5 {[%emt 0:00:16]} Nxb3 {[%emt 0:00:26]} 60. Rc7 {[%emt 0:01:02]} Nd2 {[%emt 0:00:51]} 61. b4 {[%emt 0:00:39]} Ke5 {[%emt 0:01:13]} 62. b5 {[%emt 0:00:08]} Ne4+ {[%emt 0:00:38]} 63. Kf3 {[%emt 0:00:29]} Rh3+ {[%emt 0:00:46]} 64. Kg2 {[%emt 0:00:18]} Rh6 {[%emt 0:00:30]} 65. c5 {[%emt 0:00:54]} Kd4 {[%emt 0:00:34]} 66. c6 {[%emt 0:00:26]} Kc5 {[%emt 0:00:18]} 67. Rb7 {[%emt 0:00:17]} Kd6 {[%emt 0:00:42]} 68. Rd7+ {[%emt 0:00:18]} Ke6 {[%emt 0:00:11]} 69. Rd4 {[%emt 0:00:19]} Nc5 {[%emt 0:00:51]} 70. c7 {[%emt 0:00:31]} Rh8 {[%emt 0:00:27]} 71. Rd8 {[%emt 0:00:02]} 1-0

[Event "SVK Amateur-ch 2020"]
[Site "Topolcany"]
[Date "2020.07.13"]
[Round "6.29"]
[White "Nadzamova, Viktoria"]
[Black "Marsina, Stefan"]
[Result "1/2-1/2"]
[ECO "C11"]
[WhiteElo "2046"]
[BlackElo "1854"]
[Annotator "ChessBase"]
[PlyCount "101"]
[EventDate "2020.07.10"]
[EventType "swiss"]
[EventCountry "SVK"]
[SourceTitle "playchess.com"]
[Source "ChessBase"]
[SourceQuality "1"]
[TimeControl "3600+30"]

1. e4 {[%emt 0:00:00]} e6 {[%emt 0:00:00]} 2. d4 {[%emt 0:00:00]} d5 {[%emt 0:00:00]} 3. Nc3 {[%emt 0:00:00]} Nf6 {[%emt 0:00:17]} 4. e5 {[%emt 0:00:09]} Nfd7 {[%emt 0:00:03]} 5. f4 {[%emt 0:00:10]} c5 {[%emt 0:00:15]} 6. Nf3 {[%emt 0:00:08]} Nc6 {[%emt 0:00:23]} 7. Be3 {[%emt 0:00:09]} a6 {[%emt 0:03:03]} 8. Be2 {[%emt 0:01:50]} b5 {[%emt 0:06:43]} 9. O-O {[%emt 0:05:54]} cxd4 {[%emt 0:00:30]} 10. Nxd4 {[%emt 0:00:21]} Nxd4 {[%emt 0:00:10]} 11. Bxd4 {[%emt 0:00:07]} Bc5 {[%emt 0:00:07]} 12. Bxc5 {[%emt 0:01:42]} Nxc5 {[%emt 0:00:03]} 13. Qd4 {[%emt 0:00:24]} Qb6 {[%emt 0:06:27]} 14. Kh1 {[%emt 0:01:10]} Na4 {[%emt 0:04:26]} 15. Qb4 {[%emt 0:06:31]} Qc5 {[%emt 0:03:35]} 16. Qxc5 {[%emt 0:02:28]} Nxc5 {[%emt 0:00:02]} 17. b4 {[%emt 0:00:23]} Na4 {[%emt 0:02:57]} 18. Nxa4 {[%emt 0:01:07]} bxa4 {[%emt 0:00:02]} 19. c4 {[%emt 0:03:25]} dxc4 {[%emt 0:23:44]} 20. Rac1 {[%emt 0:04:47]} Bd7 {[%emt 0:02:26]} 21. Bxc4 {[%emt 0:00:55]} Ke7 {[%emt 0:00:17]} 22. Rfd1 {[%emt 0:01:40]} Rhc8 {[%emt 0:01:06]} 23. Be2 {[%emt 0:02:36]} Rxc1 {[%emt 0:02:44]} 24. Rxc1 {[%emt 0:00:08]} Rc8 {[%emt 0:00:21]} 25. Rc5 {[%emt 0:04:46]} Rxc5 {[%emt 0:01:13]} 26. bxc5 {[%emt 0:00:10]} Bb5 {[%emt 0:00:08]} 27. Bd1 {[%emt 0:05:54]} a3 {[%emt 0:03:30]} 28. Bb3 {[%emt 0:00:11]} a5 {[%emt 0:00:16]} 29. Kg1 {[%emt 0:01:17]} a4 {[%emt 0:01:37]} 30. Bc2 {[%emt 0:00:09]} Kd7 {[%emt 0:03:43]} 31. Kf2 {[%emt 0:01:15]} Kc6 {[%emt 0:01:31]} 32. Ke3 {[%emt 0:00:35]} Kxc5 {[%emt 0:00:03]} 33. g3 {[%emt 0:00:32]} Bc4 {[%emt 0:00:29]} 34. Bb1 {[%emt 0:00:21]} f5 {[%emt 0:01:13]} 35. exf6 {[%emt 0:00:56]} gxf6 {[%emt 0:00:03]} 36. Ke4 {[%emt 0:00:30]} h6 {[%emt 0:00:53]} 37. g4 {[%emt 0:01:19]} Be2 {[%emt 0:00:57]} 38. h3 {[%emt 0:02:01]} Bf1 {[%emt 0:00:04]} 39. h4 {[%emt 0:00:52]} Bh3 {[%emt 0:01:08]} 40. Kf3 {[%emt 0:00:07]} Kd4 {[%emt 0:00:17]} 41. Bc2 {[%emt 0:00:29]} Bf1 {[%emt 0:00:47]} 42. g5 {[%emt 0:00:39]} fxg5 {[%emt 0:01:47]} 43. fxg5 {[%emt 0:00:39]} hxg5 {[%emt 0:00:48]} 44. h5 {[%emt 0:02:48]} Ke5 {[%emt 0:00:09]} 45. h6 {[%emt 0:00:30]} Kf6 {[%emt 0:00:03]} 46. h7 {[%emt 0:00:51]} Kg7 {[%emt 0:00:02]} 47. Kg4 {[%emt 0:00:10]} Bc4 {[%emt 0:00:26]} 48. Bb1 {[%emt 0:00:10]} e5 {[%emt 0:00:54]} 49. Kxg5 {[%emt 0:03:22]} e4 {[%emt 0:00:19]} 50. Kf4 {[%emt 0:00:11]} Bxa2 {[%emt 0:01:06]} 51. Bxa2 {[%emt 0:00:55]} 1/2-1/2

[Event "SVK Amateur-ch 2020"]
[Site "Topolcany"]
[Date "2020.07.13"]
[Round "6.30"]
[White "Slaba, Andrea"]
[Black "Zetocha, Adrian"]
[Result "0-1"]
[ECO "E38"]
[WhiteElo "1970"]
[BlackElo "2041"]
[Annotator "ChessBase"]
[PlyCount "58"]
[EventDate "2020.07.10"]
[EventType "swiss"]
[EventCountry "SVK"]
[SourceTitle "playchess.com"]
[Source "ChessBase"]
[SourceQuality "1"]
[TimeControl "3600+30"]

1. d4 {[%emt 0:00:00]} Nf6 {[%emt 0:00:00]} 2. c4 {[%emt 0:00:00]} e6 {[%emt 0:00:22]} 3. Nc3 {[%emt 0:00:00]} Bb4 {[%emt 0:00:18]} 4. Qc2 {[%emt 0:00:42]} c5 {[%emt 0:03:06]} 5. e3 {[%emt 0:03:31]} Nc6 {[%emt 0:03:15]} 6. Nf3 {[%emt 0:00:10]} cxd4 {[%emt 0:01:29]} 7. exd4 {[%emt 0:00:07]} d5 {[%emt 0:00:13]} 8. a3 {[%emt 0:01:14]} Qa5 {[%emt 0:01:08]} 9. Rb1 {[%emt 0:06:11]} Bxc3+ {[%emt 0:00:47]} 10. bxc3 {[%emt 0:00:05]} O-O {[%emt 0:01:23]} 11. Bd3 {[%emt 0:02:10]} dxc4 {[%emt 0:01:22]} 12. Bxc4 {[%emt 0:00:07]} h6 {[%emt 0:02:55]} 13. O-O {[%emt 0:04:14]} Rd8 {[%emt 0:00:45]} 14. Bb2 {[%emt 0:04:44]} b6 {[%emt 0:07:58]} 15. Rfe1 {[%emt 0:02:31]} Bb7 {[%emt 0:14:52]} 16. Ne5 {[%emt 0:07:14]} Ne7 {[%emt 0:02:40]} 17. Qe2 {[%emt 0:08:54]} Ned5 {[%emt 0:10:37]} 18. Qf3 {[%emt 0:07:47]} Rac8 {[%emt 0:01:35]} 19. g4 {[%emt 0:03:08]} Rc7 {[%emt 0:01:30]} 20. h4 {[%emt 0:05:24]} b5 {[%emt 0:00:54]} 21. Bd3 {[%emt 0:06:01]} Nxc3 {[%emt 0:01:39]} 22. Bxc3 {[%emt 0:00:32]} Qxc3 {[%emt 0:00:22]} 23. Qg3 {[%emt 0:02:48]} Rxd4 {[%emt 0:01:47]} 24. Re3 {[%emt 0:01:41]} Qc5 {[%emt 0:02:16]} 25. g5 {[%emt 0:02:22]} Nh5 {[%emt 0:00:43]} 26. Qh2 {[%emt 0:00:31]} hxg5 {[%emt 0:05:55]} 27. hxg5 {[%emt 0:00:05]} Qc1+ {[%emt 0:01:09]} 28. Bf1 {[%emt 0:01:03]} Qxb1 {[%emt 0:00:31]} 29. Qxh5 {[%emt 0:00:07]} Rd1 {[%emt 0:00:45]} 0-1